[Event "Titled Tuesday Blitz March 07 Early 2023"]
[White "Bolourchifard, Farzad"]
[Black "Kramnik, Vladimir"]
[WhiteFideId "12510084"]
[BlackFideId "4101588"]
[WhiteElo "2317"]
[BlackElo "2712"]
[Result "0-1"]
[Round "11"]
[TimeControl "180+2"]
[Date "2023.03.07"]
[WhiteClock "0:00:09"]
[BlackClock "0:00:13"]

1. e4 {[%clk 0:03:00]}  c5 {[%clk 0:02:59]} 2. Nc3 {[%clk 0:03:01]}  d6 {[%clk 0:02:57]} 3. g3 {[%clk 0:03:01]}  Nc6 {[%clk 0:02:55]} 4. Bg2 {[%clk 0:03:01]}  g6 {[%clk 0:02:55]} 5. d3 {[%clk 0:03:01]}  Bg7 {[%clk 0:02:55]} 6. Be3 {[%clk 0:03:02]}  Rb8 {[%clk 0:02:55]} 7. Qd2 {[%clk 0:03:02]}  b5 {[%clk 0:02:54]} 8. Nge2 {[%clk 0:03:03]}  b4 {[%clk 0:02:51]} 9. Nd1 {[%clk 0:03:03]}  h5 {[%clk 0:02:50]} 10. h3 {[%clk 0:03:03]}  Nd4 {[%clk 0:02:48]} 11. f4 {[%clk 0:03:03]}  a5 {[%clk 0:02:32]} 12. O-O {[%clk 0:03:03]}  a4 {[%clk 0:02:29]} 13. a3 {[%clk 0:02:59]}  b3 {[%clk 0:02:17]} 14. c3 {[%clk 0:03:00]}  Nc2 {[%clk 0:02:16]} 15. Rc1 {[%clk 0:02:52]}  Ba6 {[%clk 0:02:12]} 16. Bf2 {[%clk 0:02:46]}  Nf6 {[%clk 0:02:11]} 17. Ne3 {[%clk 0:02:46]}  Nxe3 {[%clk 0:02:10]} 18. Bxe3 {[%clk 0:02:47]}  Nd7 {[%clk 0:02:08]} 19. f5 {[%clk 0:02:37]}  Ne5 {[%clk 0:02:06]} 20. fxg6 {[%clk 0:02:23]}  fxg6 {[%clk 0:02:00]} 21. Nf4 {[%clk 0:02:13]}  Qd7 {[%clk 0:02:00]} 22. c4 {[%clk 0:01:39]}  O-O {[%clk 0:01:54]} 23. Nd5 {[%clk 0:01:04]}  Kh7 {[%clk 0:01:47]} 24. Bg5 {[%clk 0:01:03]}  Nc6 {[%clk 0:01:42]} 25. Kh2 {[%clk 0:00:54]}  Be5 {[%clk 0:01:32]} 26. Bh6 {[%clk 0:00:46]}  Rxf1 {[%clk 0:01:04]} 27. Rxf1 {[%clk 0:00:46]}  h4 {[%clk 0:00:43]} 28. Qg5 {[%clk 0:00:25]}  Bxg3+ {[%clk 0:00:42]} 29. Kh1 {[%clk 0:00:25]}  Ne5 {[%clk 0:00:37]} 30. Bf8 {[%clk 0:00:20]}  Rxf8 {[%clk 0:00:30]} 31. Rxf8 {[%clk 0:00:20]}  Kg7 {[%clk 0:00:30]} 32. Rf1 {[%clk 0:00:18]}  Bb7 {[%clk 0:00:24]} 33. Nxe7 {[%clk 0:00:19]}  Qe6 {[%clk 0:00:23]} 34. Nf5+ {[%clk 0:00:18]}  Kg8 {[%clk 0:00:19]} 35. Nh6+ {[%clk 0:00:10]}  Kg7 {[%clk 0:00:16]} 36. Nf5+ {[%clk 0:00:08]}  Kg8 {[%clk 0:00:16]} 37. Nxg3 {[%clk 0:00:09]}  hxg3 {[%clk 0:00:15]} 38. Qxg3 {[%clk 0:00:10]}  Qe7 {[%clk 0:00:15]} 39. Qe3 {[%clk 0:00:09]}  Kg7 {[%clk 0:00:14]} 40. Rg1 {[%clk 0:00:09]}  Bc8 {[%clk 0:00:14]} 41. Kh2 {[%clk 0:00:09]}  Qh4 {[%clk 0:00:13]} 42. Qg3 {[%clk 0:00:09]}  Ng4+ {[%clk 0:00:13]} 0-1


[Site "https://www.chess.com"]

[Event "Titled Tuesday Blitz March 07 Early 2023"]
[White "Madaminov, Mukhiddin"]
[Black "Rastbod, Ali"]
[WhiteFideId "14210703"]
[BlackFideId "12567477"]
[WhiteElo "2511"]
[BlackElo "2211"]
[Result "1-0"]
[Round "11"]
[TimeControl "180+2"]
[Date "2023.03.07"]
[WhiteClock "0:01:15"]
[BlackClock "0:00:02"]

1. d4 {[%clk 0:03:00]}  d5 {[%clk 0:02:59]} 2. Nc3 {[%clk 0:02:59]}  Nf6 {[%clk 0:02:59]} 3. Bf4 {[%clk 0:02:52]}  c5 {[%clk 0:02:59]} 4. e4 {[%clk 0:02:46]}  dxe4 {[%clk 0:02:52]} 5. dxc5 {[%clk 0:02:46]}  Qa5 {[%clk 0:02:46]} 6. Qd2 {[%clk 0:02:42]}  Nc6 {[%clk 0:02:32]} 7. Nb5 {[%clk 0:02:35]}  Qxd2+ {[%clk 0:02:28]} 8. Bxd2 {[%clk 0:02:35]}  Kd8 {[%clk 0:02:19]} 9. O-O-O {[%clk 0:02:31]}  Bd7 {[%clk 0:02:19]} 10. Nh3 {[%clk 0:02:28]}  a6 {[%clk 0:02:14]} 11. Na3 {[%clk 0:02:28]}  Bxh3 {[%clk 0:02:11]} 12. gxh3 {[%clk 0:02:24]}  e6 {[%clk 0:01:55]} 13. Nc4 {[%clk 0:02:23]}  Ke8 {[%clk 0:01:54]} 14. Nb6 {[%clk 0:02:07]}  Rd8 {[%clk 0:01:51]} 15. Be3 {[%clk 0:02:06]}  Rxd1+ {[%clk 0:01:45]} 16. Kxd1 {[%clk 0:02:05]}  Nd5 {[%clk 0:01:46]} 17. Nxd5 {[%clk 0:02:03]}  exd5 {[%clk 0:01:47]} 18. c3 {[%clk 0:02:03]}  f5 {[%clk 0:01:22]} 19. b4 {[%clk 0:02:00]}  g6 {[%clk 0:01:19]} 20. Kc2 {[%clk 0:01:54]}  Bg7 {[%clk 0:01:19]} 21. Kb3 {[%clk 0:01:51]}  Rf8 {[%clk 0:00:59]} 22. Be2 {[%clk 0:01:36]}  f4 {[%clk 0:00:55]} 23. Bc1 {[%clk 0:01:36]}  d4 {[%clk 0:00:56]} 24. Re1 {[%clk 0:01:34]}  e3 {[%clk 0:00:23]} 25. Bf3 {[%clk 0:01:32]}  Kd7 {[%clk 0:00:21]} 26. fxe3 {[%clk 0:01:28]}  dxe3 {[%clk 0:00:18]} 27. Rf1 {[%clk 0:01:21]}  Kc7 {[%clk 0:00:14]} 28. Kc2 {[%clk 0:01:19]}  Ne5 {[%clk 0:00:12]} 29. Kd1 {[%clk 0:01:19]}  Nxf3 {[%clk 0:00:10]} 30. Rxf3 {[%clk 0:01:19]}  g5 {[%clk 0:00:10]} 31. Ke2 {[%clk 0:01:18]}  h5 {[%clk 0:00:04]} 32. c4 {[%clk 0:01:15]}  g4 {[%clk 0:00:03]} 33. hxg4 {[%clk 0:01:16]}  hxg4 {[%clk 0:00:04]} 34. Rf1 {[%clk 0:01:17]}  Bd4 {[%clk 0:00:05]} 35. Kd3 {[%clk 0:01:16]}  f3 {[%clk 0:00:05]} 36. Bxe3 {[%clk 0:01:13]}  Bxe3 {[%clk 0:00:04]} 37. Kxe3 {[%clk 0:01:14]}  Rh8 {[%clk 0:00:04]} 38. Rf2 {[%clk 0:01:13]}  a5 {[%clk 0:00:03]} 39. a3 {[%clk 0:01:13]}  axb4 {[%clk 0:00:03]} 40. axb4 {[%clk 0:01:14]}  Rh7 {[%clk 0:00:02]} 41. Kf4 {[%clk 0:01:15]}  Rg7 {[%clk 0:00:02]} 42. Kg3 {[%clk 0:01:15]}  Rg8 {[%clk 0:00:02]} 43. Rd2 {[%clk 0:01:15]} 1-0


[Site "https://www.chess.com"]

[Event "Titled Tuesday Blitz March 07 Early 2023"]
[White "Fier, Alexandr"]
[Black "Mamedov, Edgar"]
[WhiteFideId "2107139"]
[BlackFideId "13739980"]
[WhiteElo "2610"]
[BlackElo "2330"]
[Result "0-1"]
[Round "11"]
[TimeControl "180+2"]
[Date "2023.03.07"]
[WhiteClock "0:00:56"]
[BlackClock "0:00:04"]

1. b3 {[%clk 0:03:00]}  Nf6 {[%clk 0:02:55]} 2. Bb2 {[%clk 0:03:01]}  g6 {[%clk 0:02:53]} 3. g4 {[%clk 0:03:01]}  Bg7 {[%clk 0:02:51]} 4. g5 {[%clk 0:03:02]}  Nh5 {[%clk 0:02:49]} 5. Bxg7 {[%clk 0:03:03]}  Nxg7 {[%clk 0:02:48]} 6. h4 {[%clk 0:03:03]}  O-O {[%clk 0:02:43]} 7. e3 {[%clk 0:03:03]}  d5 {[%clk 0:02:42]} 8. h5 {[%clk 0:03:03]}  Nxh5 {[%clk 0:02:36]} 9. Rxh5 {[%clk 0:03:04]}  gxh5 {[%clk 0:02:34]} 10. Qxh5 {[%clk 0:03:05]}  Bf5 {[%clk 0:02:32]} 11. Bd3 {[%clk 0:03:00]}  Bxd3 {[%clk 0:02:28]} 12. cxd3 {[%clk 0:02:59]}  Nc6 {[%clk 0:02:19]} 13. Nc3 {[%clk 0:02:55]}  d4 {[%clk 0:02:17]} 14. Ne4 {[%clk 0:02:41]}  Nb4 {[%clk 0:02:12]} 15. Nf3 {[%clk 0:02:28]}  Nc2+ {[%clk 0:02:06]} 16. Ke2 {[%clk 0:02:25]}  Nxa1 {[%clk 0:02:05]} 17. Nxd4 {[%clk 0:02:26]}  Qe8 {[%clk 0:01:51]} 18. Qh6 {[%clk 0:02:22]}  f5 {[%clk 0:01:47]} 19. gxf6 {[%clk 0:02:16]}  Qg6 {[%clk 0:01:43]} 20. Qh1 {[%clk 0:02:16]}  exf6 {[%clk 0:01:41]} 21. Qxa1 {[%clk 0:02:16]}  Rae8 {[%clk 0:01:36]} 22. Ng3 {[%clk 0:02:16]}  Qg4+ {[%clk 0:01:32]} 23. Kf1 {[%clk 0:02:06]}  f5 {[%clk 0:01:27]} 24. Nde2 {[%clk 0:02:03]}  f4 {[%clk 0:01:16]} 25. exf4 {[%clk 0:02:00]}  h5 {[%clk 0:01:10]} 26. Ne4 {[%clk 0:01:58]}  h4 {[%clk 0:01:04]} 27. Qd4 {[%clk 0:01:48]}  h3 {[%clk 0:01:02]} 28. Qd5+ {[%clk 0:01:41]}  Kh8 {[%clk 0:00:58]} 29. Qd4+ {[%clk 0:01:40]}  Qg7 {[%clk 0:00:49]} 30. Qxg7+ {[%clk 0:01:35]}  Kxg7 {[%clk 0:00:49]} 31. Kg1 {[%clk 0:01:36]}  Rd8 {[%clk 0:00:41]} 32. Nc5 {[%clk 0:01:31]}  Rfe8 {[%clk 0:00:37]} 33. Ng3 {[%clk 0:01:29]}  b6 {[%clk 0:00:35]} 34. Nce4 {[%clk 0:01:26]}  Rxd3 {[%clk 0:00:31]} 35. Kh2 {[%clk 0:01:26]}  a5 {[%clk 0:00:14]} 36. f5 {[%clk 0:01:21]}  a4 {[%clk 0:00:14]} 37. f6+ {[%clk 0:01:21]}  Kg6 {[%clk 0:00:14]} 38. f4 {[%clk 0:01:20]}  Rf3 {[%clk 0:00:12]} 39. f7 {[%clk 0:01:15]}  Rf8 {[%clk 0:00:10]} 40. f5+ {[%clk 0:01:10]}  Rxf5 {[%clk 0:00:10]} 41. Nxf5 {[%clk 0:01:10]}  Kxf5 {[%clk 0:00:10]} 42. Ng3+ {[%clk 0:01:11]}  Ke5 {[%clk 0:00:10]} 43. bxa4 {[%clk 0:01:11]}  Rxf7 {[%clk 0:00:10]} 44. Kxh3 {[%clk 0:01:05]}  Rf2 {[%clk 0:00:09]} 45. d3 {[%clk 0:01:05]}  Rxa2 {[%clk 0:00:09]} 46. Kg4 {[%clk 0:01:05]}  Rxa4+ {[%clk 0:00:09]} 47. Kf3 {[%clk 0:01:06]}  Kd4 {[%clk 0:00:08]} 48. Ne4 {[%clk 0:00:54]}  Kxd3 {[%clk 0:00:06]} 49. Nf6 {[%clk 0:00:55]}  Rd4 {[%clk 0:00:05]} 50. Ne8 {[%clk 0:00:53]}  c5 {[%clk 0:00:04]} 51. Nc7 {[%clk 0:00:54]}  c4 {[%clk 0:00:04]} 52. Nb5 {[%clk 0:00:55]}  c3 {[%clk 0:00:04]} 53. Na3 {[%clk 0:00:55]}  c2 {[%clk 0:00:03]} 54. Nxc2 {[%clk 0:00:55]}  Kxc2 {[%clk 0:00:04]} 55. Ke3 {[%clk 0:00:56]}  Kc3 {[%clk 0:00:04]} 0-1


[Site "https://www.chess.com"]

[Event "Titled Tuesday Blitz March 07 Early 2023"]
[White "Costachi, Mihnea"]
[Black "Krstulovic, Alex"]
[WhiteFideId "1217518"]
[BlackFideId "760056"]
[WhiteElo "2456"]
[BlackElo "2311"]
[Result "0-1"]
[Round "11"]
[TimeControl "180+2"]
[Date "2023.03.07"]
[WhiteClock "0:00:07"]
[BlackClock "0:00:31"]

1. Nc3 {[%clk 0:03:00]}  d5 {[%clk 0:02:59]} 2. d4 {[%clk 0:02:59]}  Nf6 {[%clk 0:02:59]} 3. Bf4 {[%clk 0:02:59]}  e6 {[%clk 0:02:59]} 4. e3 {[%clk 0:02:59]}  Bb4 {[%clk 0:02:57]} 5. Bd3 {[%clk 0:02:55]}  c5 {[%clk 0:02:53]} 6. dxc5 {[%clk 0:02:55]}  Nbd7 {[%clk 0:02:49]} 7. Ne2 {[%clk 0:02:54]}  Nxc5 {[%clk 0:02:48]} 8. O-O {[%clk 0:02:51]}  O-O {[%clk 0:02:45]} 9. Bg5 {[%clk 0:02:47]}  h6 {[%clk 0:02:43]} 10. Bh4 {[%clk 0:02:43]}  Nxd3 {[%clk 0:02:43]} 11. cxd3 {[%clk 0:02:43]}  Be7 {[%clk 0:02:44]} 12. d4 {[%clk 0:02:42]}  Bd7 {[%clk 0:02:43]} 13. Rc1 {[%clk 0:02:39]}  Rc8 {[%clk 0:02:43]} 14. Qb3 {[%clk 0:02:39]}  Bc6 {[%clk 0:02:40]} 15. Nf4 {[%clk 0:02:37]}  g5 {[%clk 0:02:36]} 16. Bxg5 {[%clk 0:02:31]}  hxg5 {[%clk 0:02:37]} 17. Nd3 {[%clk 0:02:32]}  Bd6 {[%clk 0:02:33]} 18. f4 {[%clk 0:02:30]}  g4 {[%clk 0:02:29]} 19. Qd1 {[%clk 0:02:26]}  Kg7 {[%clk 0:01:38]} 20. Ne5 {[%clk 0:02:25]}  Rh8 {[%clk 0:01:37]} 21. Nxg4 {[%clk 0:02:17]}  Qg8 {[%clk 0:01:37]} 22. Ne5 {[%clk 0:02:13]}  Qh7 {[%clk 0:01:34]} 23. h3 {[%clk 0:02:13]}  Rcg8 {[%clk 0:01:32]} 24. Qf3 {[%clk 0:02:08]}  Kf8 {[%clk 0:01:27]} 25. Kf2 {[%clk 0:01:41]}  Ne4+ {[%clk 0:01:14]} 26. Ke1 {[%clk 0:01:11]}  Rg3 {[%clk 0:01:13]} 27. Qe2 {[%clk 0:01:11]}  Rhg8 {[%clk 0:01:12]} 28. Ng4 {[%clk 0:00:56]}  Qh4 {[%clk 0:00:54]} 29. Kd1 {[%clk 0:00:45]}  f5 {[%clk 0:00:53]} 30. Nxe4 {[%clk 0:00:40]}  dxe4 {[%clk 0:00:52]} 31. Rxc6 {[%clk 0:00:24]}  bxc6 {[%clk 0:00:51]} 32. Qc4 {[%clk 0:00:23]}  fxg4 {[%clk 0:00:43]} 33. Qxe6 {[%clk 0:00:23]}  Qe7 {[%clk 0:00:43]} 34. Qf5+ {[%clk 0:00:23]}  Qf7 {[%clk 0:00:40]} 35. Qc8+ {[%clk 0:00:23]}  Kg7 {[%clk 0:00:40]} 36. Qxc6 {[%clk 0:00:24]}  Be7 {[%clk 0:00:36]} 37. Qxe4 {[%clk 0:00:18]}  gxh3 {[%clk 0:00:34]} 38. gxh3 {[%clk 0:00:15]}  Qh5+ {[%clk 0:00:35]} 39. Kd2 {[%clk 0:00:13]}  Bb4+ {[%clk 0:00:34]} 40. Kc2 {[%clk 0:00:13]}  Rc8+ {[%clk 0:00:32]} 41. Kb3 {[%clk 0:00:11]}  Qb5 {[%clk 0:00:31]} 42. a4 {[%clk 0:00:07]}  Qc4# {[%clk 0:00:31]} 0-1


[Site "https://www.chess.com"]

[Event "Titled Tuesday Blitz March 07 Early 2023"]
[White "Ljukin, Sergei"]
[Black "EREBUNI91"]
[WhiteFideId "14102200"]
[WhiteElo "2312"]
[BlackElo "2745"]
[Result "0-1"]
[Round "11"]
[TimeControl "180+2"]
[Date "2023.03.07"]
[WhiteClock "0:00:14"]
[BlackClock "0:02:18"]

1. e4 {[%clk 0:03:00]}  c5 {[%clk 0:03:00]} 2. Nf3 {[%clk 0:02:59]}  d6 {[%clk 0:03:00]} 3. d4 {[%clk 0:03:00]}  cxd4 {[%clk 0:03:01]} 4. Nxd4 {[%clk 0:03:00]}  Nf6 {[%clk 0:03:02]} 5. Nc3 {[%clk 0:03:01]}  a6 {[%clk 0:03:02]} 6. Bg5 {[%clk 0:03:01]}  Nbd7 {[%clk 0:03:01]} 7. f4 {[%clk 0:03:01]}  Qc7 {[%clk 0:03:01]} 8. Qf3 {[%clk 0:03:00]}  h6 {[%clk 0:03:02]} 9. Bxf6 {[%clk 0:03:00]}  Nxf6 {[%clk 0:03:03]} 10. f5 {[%clk 0:03:01]}  Qc5 {[%clk 0:03:02]} 11. O-O-O {[%clk 0:03:00]}  g5 {[%clk 0:03:03]} 12. g4 {[%clk 0:03:00]}  Bg7 {[%clk 0:03:01]} 13. Nb3 {[%clk 0:02:45]}  Qc7 {[%clk 0:02:56]} 14. h4 {[%clk 0:02:41]}  b5 {[%clk 0:02:54]} 15. Be2 {[%clk 0:02:36]}  Bb7 {[%clk 0:02:53]} 16. Qe3 {[%clk 0:02:11]}  b4 {[%clk 0:02:42]} 17. Nd5 {[%clk 0:02:10]}  Bxd5 {[%clk 0:02:32]} 18. exd5 {[%clk 0:02:10]}  Rc8 {[%clk 0:02:32]} 19. Kb1 {[%clk 0:01:28]}  Qxc2+ {[%clk 0:02:31]} 20. Ka1 {[%clk 0:01:28]}  Qe4 {[%clk 0:02:31]} 21. Qxe4 {[%clk 0:01:23]}  Nxe4 {[%clk 0:02:32]} 22. Bxa6 {[%clk 0:01:16]}  Rc2 {[%clk 0:02:29]} 23. Nd4 {[%clk 0:00:58]}  Rg2 {[%clk 0:02:22]} 24. hxg5 {[%clk 0:00:16]}  hxg5 {[%clk 0:02:23]} 25. Rxh8+ {[%clk 0:00:16]}  Bxh8 {[%clk 0:02:24]} 26. Kb1 {[%clk 0:00:14]}  Nd2+ {[%clk 0:02:18]} 27. Kc1 {[%clk 0:00:14]}  Bxd4 {[%clk 0:02:18]} 28. Rxd2 {[%clk 0:00:14]}  Be3 {[%clk 0:02:18]} 0-1


[Site "https://www.chess.com"]

[Event "Titled Tuesday Blitz March 07 Early 2023"]
[White "Orozbaev, Eldiar"]
[Black "Vlasak, Lukas"]
[WhiteFideId "13802240"]
[BlackFideId "324752"]
[WhiteElo "2201"]
[BlackElo "2345"]
[Result "1-0"]
[Round "11"]
[TimeControl "180+2"]
[Date "2023.03.07"]
[WhiteClock "0:01:52"]
[BlackClock "0:00:16"]

1. e4 {[%clk 0:03:00]}  c5 {[%clk 0:02:59]} 2. c3 {[%clk 0:03:00]}  Nf6 {[%clk 0:02:58]} 3. e5 {[%clk 0:02:56]}  Nd5 {[%clk 0:02:58]} 4. d4 {[%clk 0:02:57]}  cxd4 {[%clk 0:02:56]} 5. cxd4 {[%clk 0:02:58]}  Nc6 {[%clk 0:02:55]} 6. Nf3 {[%clk 0:02:59]}  d6 {[%clk 0:02:55]} 7. Nc3 {[%clk 0:02:58]}  Nxc3 {[%clk 0:02:49]} 8. bxc3 {[%clk 0:02:59]}  e6 {[%clk 0:02:46]} 9. Bd3 {[%clk 0:02:46]}  Be7 {[%clk 0:02:41]} 10. Qe2 {[%clk 0:02:42]}  O-O {[%clk 0:02:38]} 11. h4 {[%clk 0:02:40]}  dxe5 {[%clk 0:02:37]} 12. Bxh7+ {[%clk 0:02:39]}  Kh8 {[%clk 0:02:03]} 13. Ng5 {[%clk 0:02:40]}  g6 {[%clk 0:01:53]} 14. Qg4 {[%clk 0:02:27]}  exd4 {[%clk 0:01:50]} 15. h5 {[%clk 0:02:26]}  Ne5 {[%clk 0:01:49]} 16. Qg3 {[%clk 0:02:21]}  Bf6 {[%clk 0:01:18]} 17. hxg6 {[%clk 0:02:18]}  dxc3 {[%clk 0:01:07]} 18. Nxf7+ {[%clk 0:01:57]}  Nxf7 {[%clk 0:00:54]} 19. gxf7 {[%clk 0:01:56]}  Qd5 {[%clk 0:00:16]} 20. Bg8+ {[%clk 0:01:52]} 1-0


[Site "https://www.chess.com"]

[Event "Titled Tuesday Blitz March 07 Early 2023"]
[White "Aldokhin, Ivan"]
[Black "Andreev, Konstantin"]
[WhiteFideId "24115720"]
[BlackFideId "24239305"]
[WhiteElo "2322"]
[BlackElo "2106"]
[Result "1-0"]
[Round "11"]
[TimeControl "180+2"]
[Date "2023.03.07"]
[WhiteClock "0:00:03"]
[BlackClock "0:00:01"]

1. e4 {[%clk 0:03:00]}  c5 {[%clk 0:03:00]} 2. Nf3 {[%clk 0:03:00]}  e6 {[%clk 0:03:01]} 3. d4 {[%clk 0:03:00]}  cxd4 {[%clk 0:03:01]} 4. Nxd4 {[%clk 0:03:00]}  Nc6 {[%clk 0:03:02]} 5. Nc3 {[%clk 0:03:00]}  Qc7 {[%clk 0:03:02]} 6. Nxc6 {[%clk 0:02:59]}  bxc6 {[%clk 0:03:01]} 7. Bd3 {[%clk 0:03:00]}  Nf6 {[%clk 0:02:58]} 8. Qe2 {[%clk 0:03:00]}  e5 {[%clk 0:02:58]} 9. O-O {[%clk 0:02:59]}  Be7 {[%clk 0:02:58]} 10. f4 {[%clk 0:02:45]}  d6 {[%clk 0:02:56]} 11. f5 {[%clk 0:02:45]}  d5 {[%clk 0:02:51]} 12. Kh1 {[%clk 0:02:34]}  O-O {[%clk 0:02:43]} 13. g4 {[%clk 0:02:29]}  dxe4 {[%clk 0:02:38]} 14. Nxe4 {[%clk 0:02:28]}  Nxe4 {[%clk 0:02:38]} 15. Bxe4 {[%clk 0:02:19]}  Bb7 {[%clk 0:02:22]} 16. g5 {[%clk 0:01:56]}  g6 {[%clk 0:01:54]} 17. f6 {[%clk 0:01:51]}  Bd6 {[%clk 0:01:53]} 18. Qf3 {[%clk 0:01:40]}  Rfd8 {[%clk 0:01:51]} 19. Be3 {[%clk 0:01:38]}  Bf8 {[%clk 0:01:38]} 20. Rfd1 {[%clk 0:01:31]}  a5 {[%clk 0:01:38]} 21. Kg2 {[%clk 0:01:18]}  Rab8 {[%clk 0:01:32]} 22. Rxd8 {[%clk 0:01:08]}  Rxd8 {[%clk 0:01:30]} 23. Rd1 {[%clk 0:01:08]}  Rxd1 {[%clk 0:01:28]} 24. Qxd1 {[%clk 0:01:08]}  c5 {[%clk 0:01:28]} 25. Qf3 {[%clk 0:01:07]}  Bxe4 {[%clk 0:01:23]} 26. Qxe4 {[%clk 0:01:08]}  Qd6 {[%clk 0:01:23]} 27. a4 {[%clk 0:00:57]}  h6 {[%clk 0:01:23]} 28. h4 {[%clk 0:00:56]}  Qe6 {[%clk 0:01:16]} 29. b3 {[%clk 0:00:52]}  Bd6 {[%clk 0:01:13]} 30. Qa8+ {[%clk 0:00:46]}  Kh7 {[%clk 0:01:12]} 31. Qe4 {[%clk 0:00:44]}  Kg8 {[%clk 0:01:02]} 32. Bd2 {[%clk 0:00:44]}  hxg5 {[%clk 0:00:58]} 33. hxg5 {[%clk 0:00:43]}  Bc7 {[%clk 0:00:44]} 34. Qc4 {[%clk 0:00:32]}  Qf5 {[%clk 0:00:37]} 35. Qxc5 {[%clk 0:00:31]}  Qg4+ {[%clk 0:00:36]} 36. Kf1 {[%clk 0:00:27]}  Qd1+ {[%clk 0:00:34]} 37. Be1 {[%clk 0:00:27]}  Qf3+ {[%clk 0:00:32]} 38. Bf2 {[%clk 0:00:24]}  e4 {[%clk 0:00:15]} 39. Qxc7 {[%clk 0:00:12]}  e3 {[%clk 0:00:15]} 40. Qb8+ {[%clk 0:00:08]}  Kh7 {[%clk 0:00:15]} 41. Qh2+ {[%clk 0:00:09]}  Kg8 {[%clk 0:00:16]} 42. Ke1 {[%clk 0:00:07]}  exf2+ {[%clk 0:00:12]} 43. Qxf2 {[%clk 0:00:08]}  Qe4+ {[%clk 0:00:12]} 44. Kd2 {[%clk 0:00:06]}  Qd5+ {[%clk 0:00:11]} 45. Kc3 {[%clk 0:00:04]}  Qxg5 {[%clk 0:00:11]} 46. Qd4 {[%clk 0:00:04]}  Qf5 {[%clk 0:00:10]} 47. Kd2 {[%clk 0:00:03]}  g5 {[%clk 0:00:09]} 48. Ke3 {[%clk 0:00:03]}  Qe6+ {[%clk 0:00:05]} 49. Kf3 {[%clk 0:00:02]}  Qh3+ {[%clk 0:00:04]} 50. Ke2 {[%clk 0:00:02]}  Qg2+ {[%clk 0:00:04]} 51. Qf2 {[%clk 0:00:02]}  Qe4+ {[%clk 0:00:04]} 52. Kf1 {[%clk 0:00:02]}  g4 {[%clk 0:00:03]} 53. Kg1 {[%clk 0:00:02]}  Qg6 {[%clk 0:00:03]} 54. Kg2 {[%clk 0:00:02]}  Qg5 {[%clk 0:00:03]} 55. Kg3 {[%clk 0:00:03]}  Qg6 {[%clk 0:00:03]} 56. Qe2 {[%clk 0:00:02]}  Kf8 {[%clk 0:00:02]} 57. Qxg4 {[%clk 0:00:02]}  Qxc2 {[%clk 0:00:02]} 58. Qf3 {[%clk 0:00:02]}  Qc7+ {[%clk 0:00:01]} 59. Kg4 {[%clk 0:00:02]}  Qd7+ {[%clk 0:00:01]} 60. Kg5 {[%clk 0:00:03]} 1-0


[Site "https://www.chess.com"]

[Event "Titled Tuesday Blitz March 07 Early 2023"]
[White "Matinian, Nikita"]
[Black "Tymrakiewicz, Rafal"]
[WhiteFideId "24129100"]
[BlackFideId "1108832"]
[WhiteElo "2422"]
[BlackElo "2151"]
[Result "1-0"]
[Round "11"]
[TimeControl "180+2"]
[Date "2023.03.07"]
[WhiteClock "0:00:20"]
[BlackClock "0:00:02"]

1. e4 {[%clk 0:03:00]}  Nf6 {[%clk 0:02:59]} 2. e5 {[%clk 0:03:00]}  Nd5 {[%clk 0:02:58]} 3. d4 {[%clk 0:03:01]}  d6 {[%clk 0:02:58]} 4. Nf3 {[%clk 0:03:02]}  g6 {[%clk 0:02:57]} 5. Bc4 {[%clk 0:02:59]}  Nb6 {[%clk 0:02:58]} 6. Bb3 {[%clk 0:03:00]}  d5 {[%clk 0:02:58]} 7. c3 {[%clk 0:02:57]}  Bg7 {[%clk 0:02:58]} 8. h4 {[%clk 0:02:54]}  Bg4 {[%clk 0:02:57]} 9. Bf4 {[%clk 0:02:50]}  Nc6 {[%clk 0:02:55]} 10. Nbd2 {[%clk 0:02:49]}  f6 {[%clk 0:02:46]} 11. Qe2 {[%clk 0:02:34]}  fxe5 {[%clk 0:02:43]} 12. dxe5 {[%clk 0:02:34]}  O-O {[%clk 0:02:14]} 13. Qe3 {[%clk 0:02:34]}  e6 {[%clk 0:01:53]} 14. Bh6 {[%clk 0:02:20]}  Qe7 {[%clk 0:01:40]} 15. O-O-O {[%clk 0:02:04]}  Nd7 {[%clk 0:01:40]} 16. Rde1 {[%clk 0:01:55]}  Qc5 {[%clk 0:01:15]} 17. Qg5 {[%clk 0:01:32]}  Bxf3 {[%clk 0:00:51]} 18. Bxg7 {[%clk 0:01:24]}  Kxg7 {[%clk 0:00:47]} 19. Nxf3 {[%clk 0:01:16]}  Rf5 {[%clk 0:00:46]} 20. Qg3 {[%clk 0:01:11]}  d4 {[%clk 0:00:34]} 21. Bxe6 {[%clk 0:01:08]}  Rxf3 {[%clk 0:00:20]} 22. Qxf3 {[%clk 0:01:03]}  Ndxe5 {[%clk 0:00:20]} 23. Qd5 {[%clk 0:00:40]}  Qxd5 {[%clk 0:00:18]} 24. Bxd5 {[%clk 0:00:40]}  Nd3+ {[%clk 0:00:19]} 25. Kc2 {[%clk 0:00:40]}  Nxe1+ {[%clk 0:00:19]} 26. Rxe1 {[%clk 0:00:41]}  dxc3 {[%clk 0:00:19]} 27. Bxc6 {[%clk 0:00:39]}  bxc6 {[%clk 0:00:19]} 28. Re7+ {[%clk 0:00:29]}  Kf6 {[%clk 0:00:19]} 29. Rxc7 {[%clk 0:00:29]}  cxb2 {[%clk 0:00:19]} 30. Rxc6+ {[%clk 0:00:29]}  Kf5 {[%clk 0:00:19]} 31. Kxb2 {[%clk 0:00:29]}  Re8 {[%clk 0:00:18]} 32. Rc5+ {[%clk 0:00:20]}  Kg4 {[%clk 0:00:17]} 33. Rc4+ {[%clk 0:00:20]}  Kh5 {[%clk 0:00:17]} 34. Rc7 {[%clk 0:00:20]}  Re2+ {[%clk 0:00:15]} 35. Kb3 {[%clk 0:00:21]}  Rxf2 {[%clk 0:00:15]} 36. Rxh7+ {[%clk 0:00:21]}  Kg4 {[%clk 0:00:16]} 37. Rxa7 {[%clk 0:00:21]}  Rxg2 {[%clk 0:00:15]} 38. Rh7 {[%clk 0:00:20]}  Rg1 {[%clk 0:00:14]} 39. a4 {[%clk 0:00:20]}  Rb1+ {[%clk 0:00:14]} 40. Kc4 {[%clk 0:00:20]}  Ra1 {[%clk 0:00:14]} 41. Kb5 {[%clk 0:00:20]}  Rb1+ {[%clk 0:00:14]} 42. Ka6 {[%clk 0:00:21]}  Kf5 {[%clk 0:00:13]} 43. a5 {[%clk 0:00:21]}  Kg4 {[%clk 0:00:12]} 44. Ka7 {[%clk 0:00:21]}  Rh1 {[%clk 0:00:02]} 45. Rh6 {[%clk 0:00:20]} 1-0


[Site "https://www.chess.com"]